lending/lending_fUSD_20260119
["ID","MTS","AMOUNT","RATE_DAILY","PERIOD"]
[402711560,1768821041452,-4851.09453331,0.00016922,2]
[402711561,1768821041462,-500.0,0.00016925,2]
[402711562,1768821041475,-204.33882503,0.00016939,2]
[402711563,1768821041484,-1787.18771885,0.00016942,2]
[402711564,1768821041494,-1641.68,0.00016952,2]
[402711565,1768821041503,-242.40907876,0.00016962,2]
[402711566,1768821041513,-500.0,0.0001698,2]
[402711567,1768821041523,-250.0,0.00016983,2]
[402711568,1768821041532,-396.35,0.00017,2]
[402711569,1768821041544,-166.66,0.00017008,2]
[402711570,1768821041554,-242.40907876,0.00017017,2]
[402711571,1768821041563,-500.0,0.00017035,2]
[402711572,1768821041573,-1787.18771885,0.00017062,2]
[402711573,1768821041582,-242.40907876,0.00017073,2]
[402711574,1768821041591,-200.0,0.000171,6]
[402711575,1768821041600,-256.34,0.00017124,2]
[402711576,1768821041610,-242.40907876,0.00017128,2]
[402711577,1768821041624,-1787.18771885,0.00017181,2]
[402711578,1768821041634,-242.40907876,0.00017183,2]
[402711579,1768821041643,-500.0,0.000172,6]
[402711580,1768821041653,-181.08010149,0.00017219,2]
[402711581,1768821041663,-151.0,0.00017219,2]
[402711582,1768821041673,-595.37131296,0.00017219,2]
[402711583,1768821041683,-242.40907876,0.00017238,2]
[402711584,1768821041694,-166.66,0.00017252,2]
[402711585,1768821041704,-333.9,0.00017255,2]
[402711586,1768821041714,-1000.0,0.0001726,2]
[402711587,1768821041723,-150.0,0.0001728,2]
[402711588,1768821041733,-242.40907876,0.00017293,2]
[402711589,1768821041743,-150.0,0.00017299,2]
[402711590,1768821041752,-150.0,0.00017299,2]
[402711591,1768821041762,-800.0,0.000173,6]
[402711592,1768821041772,-1787.18771885,0.00017301,2]
[402711593,1768821041782,-346.18,0.00017312,2]
[402711594,1768821041791,-240.0,0.00017338,2]
[402711595,1768821041801,-420.0,0.00017338,2]
[402711596,1768821041810,-242.40907876,0.00017348,2]
[402711597,1768821041820,-166.66,0.00017359,2]
[402711598,1768821041830,-28813.52619108,0.0001736,2]
[402711599,1768821041839,-1000.0,0.000174,6]
[402711600,1768821041848,-242.40907876,0.00017404,2]
[402711601,1768821041858,-1787.18771885,0.00017421,2]
[402711602,1768821041867,-1680.0,0.00017426,2]
[402711603,1768821041877,-250.0,0.00017434,2]
[402711604,1768821041887,-600.0,0.00017434,2]
[402711605,1768821041897,-300.0,0.00017434,2]
[402711606,1768821041907,-195.0,0.00017434,2]
[402711607,1768821041918,-2500.0,0.00017434,2]
[402711608,1768821041930,-155.93391326,0.00017437,2]
[402711609,1768821041939,-250.0,0.00017442,2]
[402711610,1768821041950,-242.40907876,0.00017459,2]
[402711611,1768821041959,-4826.0,0.00017496,2]
[402711612,1768821041969,-566.0,0.00017496,2]
[402711613,1768821041978,-2440.0,0.00017496,2]
[402711614,1768821041987,-2000.0,0.000175,2]
[402711615,1768821041996,-2000.0,0.000175,2]
[402711616,1768821042006,-1300.0,0.000175,6]
[402711617,1768821042015,-242.40907876,0.00017514,2]
[402711618,1768821042025,-1000.0,0.00017534,2]
[402711619,1768821042034,-917.03,0.0001754,2]
[402711620,1768821042044,-1787.18771885,0.00017541,2]
[402711621,1768821042054,-242.40907876,0.00017569,2]
[402711622,1768821042063,-288.0,0.00017569,2]
[402711623,1768821042072,-200.0,0.000176,6]
[402711624,1768821042082,-242.40907876,0.00017624,2]
[402711625,1768821042091,-150.0,0.0001764,2]
[402711626,1768821042100,-491.48929173,0.0001764,2]
[402711627,1768821042110,-1787.18771885,0.0001766,2]
[402711630,1768821042422,-242.40907876,0.00017679,2]
[402711631,1768821042431,-557.61,0.00017681,2]
[402711632,1768821042440,-151.0,0.00017697,2]
[402711633,1768821042450,-200.0,0.000177,6]
[402711634,1768821042459,-166.66,0.0001771,2]
[402711635,1768821042469,-1000.0,0.00017725,2]
[402711637,1768821042478,-773.69463011,0.00017725,2]
[402711638,1768821042489,-150.0,0.00017726,2]
[402711639,1768821042498,-150.0,0.00017726,2]
[402711640,1768821042507,-150.0,0.00017726,2]
[402711641,1768821042516,-150.0,0.00017726,2]
[402711642,1768821042526,-150.0,0.00017726,2]
[402711643,1768821042535,-150.65315728,0.00017726,2]
[402711645,1768821042545,-150.0,0.00017726,2]
[402711647,1768821042554,-150.0,0.00017726,2]
[402711649,1768821042563,-151.07703537,0.00017726,2]
[402711651,1768821042572,-150.65265465,0.00017726,2]
[402711652,1768821042581,-150.0,0.00017726,2]
[402711653,1768821042590,-500.0,0.00017726,2]
[402711654,1768821042599,-151.32198325,0.00017726,2]
[402711655,1768821042609,-288.14951301,0.0001773,2]
[402711656,1768821042618,-219.62857517,0.00017733,2]
[402711657,1768821042627,-242.40907876,0.00017735,2]
[402711658,1768821042636,-1000.0,0.00017739,2]
[402711659,1768821042646,-288.0,0.00017743,2]
[402711660,1768821042655,-773.69463003,0.00017744,2]
[402711661,1768821042664,-1000.0,0.00017755,2]
[402711662,1768821042673,-750.0,0.00017757,2]
[402711663,1768821042683,-1000.0,0.00017758,2]
[402711664,1768821042692,-750.0,0.00017758,2]
[402711665,1768821042702,-773.69463003,0.00017764,2]
[402711666,1768821042712,-181.08010148,0.00017767,2]
[402711667,1768821042721,-151.0,0.00017767,2]
[402711668,1768821042731,-617.40005154,0.00017767,2]
[402711669,1768821042740,-1000.0,0.00017772,2]
[402711670,1768821042750,-750.0,0.00017776,2]
[402711671,1768821042759,-1787.18771885,0.0001778,2]
[402711672,1768821042768,-161.25613076,0.00017781,2]
[402711673,1768821042777,-150.0,0.00017781,2]
[402711674,1768821042787,-150.0,0.00017781,2]
[402711675,1768821042797,-150.0,0.00017781,2]
[402711676,1768821042806,-150.0,0.00017781,2]
[402711677,1768821042816,-150.0,0.00017781,2]
[402711678,1768821042825,-150.0,0.00017781,2]
[402711679,1768821042835,-150.0,0.00017781,2]
[402711680,1768821042845,-500.0,0.00017781,2]
[402711681,1768821042855,-773.69463003,0.00017783,2]
[402711682,1768821042864,-750.0,0.00017785,2]
[402711683,1768821042876,-242.40907876,0.0001779,2]
[402711684,1768821042887,-750.0,0.00017794,2]
[402711685,1768821042898,-1000.0,0.000178,2]
[402711686,1768821042907,-200.0,0.000178,6]
[402711687,1768821042917,-1000.0,0.00017801,2]
[402711688,1768821042927,-750.0,0.00017802,2]
[402711689,1768821042936,-773.69463003,0.00017803,2]
[402711690,1768821042945,-1000.0,0.00017808,2]
[402711691,1768821042954,-1000.0,0.00017808,2]
[402711692,1768821042963,-2838.367,0.00017809,2]
[402711693,1768821042972,-158.744,0.00017809,2]
[402711694,1768821042981,-1000.0,0.0001782,2]
[402711695,1768821042990,-2736.48,0.0001782,2]
[402711696,1768821042998,-2736.48,0.0001782,2]
[402711697,1768821043007,-773.69463003,0.00017822,2]
[402711698,1768821043017,-500.0,0.00017829,2]
[402711699,1768821043026,-500.0,0.00017829,2]
[402711701,1768821043035,-500.0,0.00017829,2]
[402711703,1768821043048,-300.0,0.00017829,2]
[402711705,1768821043057,-300.0,0.00017829,2]
[402711708,1768821043066,-500.0,0.00017829,2]
[402711709,1768821043075,-300.0,0.00017829,2]
[402711710,1768821043084,-500.0,0.00017829,2]
[402711711,1768821043093,-500.0,0.00017829,2]
[402711712,1768821043102,-500.0,0.00017829,2]
[402711713,1768821043111,-121784.26872133,0.0001783,2]
[402711714,1768821043119,-250.0,0.0001783,2]
[402711715,1768821043128,-151.5999116,0.00017832,2]
[402711716,1768821043138,-400.07456525,0.00017832,2]
[402711717,1768821043147,-705.77895545,0.00017832,2]
[402711718,1768821043156,-1055.80310749,0.00017832,2]
[402711719,1768821043164,-1428.5304,0.00017832,2]
[402711720,1768821043173,-161.47767001,0.00017836,2]
[402711721,1768821043182,-150.0,0.00017836,2]
[402711722,1768821043191,-150.0,0.00017836,2]
[402711723,1768821043200,-150.0,0.00017836,2]
[402711724,1768821043209,-150.0,0.00017836,2]
[402711725,1768821043219,-221.17629805,0.00017836,2]
[402711726,1768821043228,-231.96376164,0.00017836,2]
[402711727,1768821043237,-358.06595541,0.00017836,2]
[402711728,1768821043247,-773.69463003,0.00017842,2]
[402711729,1768821043256,-227.51,0.00017843,2]
[402711730,1768821043265,-242.40907876,0.00017845,2]
[402711731,1768821043274,-773.69463003,0.00017861,2]
[402711732,1768821043283,-750.0,0.00017873,2]
[402711733,1768821043292,-1000.0,0.00017879,2]
[402711734,1768821043301,-773.69463003,0.00017881,2]
[402711735,1768821043310,-2736.48,0.0001789,2]
[402711736,1768821043320,-187.0926832,0.0001789,2]
[402711737,1768821043332,-150.0,0.0001789,2]
[402711738,1768821043343,-155.03086821,0.0001789,2]
[402711739,1768821043353,-182.27113961,0.0001789,2]
[402711740,1768821043362,-1000.0,0.00017893,2]
[402711741,1768821043373,-150.0,0.00017893,2]
[402711742,1768821043383,-10000.0,0.000179,2]
[402711743,1768821043392,-12398.50787689,0.000179,3]
[402711744,1768821043445,-378.66,0.000179,3]
[402711745,1768821043455,-7677.89614001,0.000179,3]
[402711746,1768821043464,-1787.18771885,0.000179,2]
[402711747,1768821043476,-200.0,0.000179,6]
[402711748,1768821043484,-242.40907876,0.000179,2]
[402711749,1768821043492,-773.69463003,0.000179,2]
[402711750,1768821043500,-3926.0,0.000179,2]
[402711751,1768821043511,-708.90137083,0.00017902,2]
[402711752,1768821043520,-150.0,0.00017904,2]
[402711753,1768821043529,-9.25158626,0.00017907,2]
[402711754,1768821043540,-145.14841374,0.00017907,2]
[402711755,1768821043550,-1000.0,0.00017916,2]
[402711756,1768821043560,-500.0,0.00017917,2]
[402711757,1768821043571,-500.0,0.00017917,2]
[402711758,1768821043583,-580.84626551,0.00017917,2]
[402711759,1768821043593,-500.0,0.00017917,2]
[402711760,1768821043604,-500.0,0.00017917,2]
[402711761,1768821043613,-212.41,0.00017919,2]
[402711762,1768821043623,-1000.0,0.00017927,2]
[402711763,1768821043632,-200.0,0.00017937,2]
[402711764,1768821043643,-750.0,0.00017942,2]
[402711765,1768821043653,-150.40921962,0.00017945,2]
[402711766,1768821043663,-1000.0,0.00017948,2]
[402711767,1768821043672,-1000.0,0.00017952,2]
[402711768,1768821043681,-250.0,0.00017953,2]
[402711769,1768821043692,-166.66,0.00017964,2]
[402711770,1768821043702,-5888.0,0.00017967,2]
[402711771,1768821043712,-500.0,0.00017973,2]
[402711772,1768821043721,-250.0,0.00017973,2]
[402711773,1768821043731,-500.0,0.00017982,2]
[402711774,1768821043740,-288.0,0.00017982,2]
[402711775,1768821043750,-2736.48,0.00017989,2]
[402711776,1768821043759,-2736.48,0.00017989,2]
[402711777,1768821043769,-216.92945839,0.0001799,2]
[402711778,1768821043778,-216.92945839,0.0001799,2]
[402711779,1768821043787,-216.92945839,0.0001799,2]
[402711780,1768821043801,-151.0,0.00017996,2]
[402711781,1768821043811,-151.0,0.00017997,2]
[402711782,1768821043821,-642.58389368,0.00017998,2]
[402711783,1768821043830,-510.51181022,0.00017998,2]
[402711784,1768821043839,-505.04837399,0.00017998,2]
[402711785,1768821043849,-500.0,0.00017998,2]
[402711786,1768821043858,-25201.4205982,0.00017999,2]
[402711787,1768821043867,-519.05995183,0.00017999,2]
[402711788,1768821043876,-118093.3521359,0.00017999,2]
[402711789,1768821043886,-300.0,0.00017999,2]
[402711790,1768821043896,-500.0,0.00017999,2]
[402711791,1768821043905,-500.0,0.00017999,2]
[402711792,1768821043915,-500.0,0.00017999,2]
[402711793,1768821043925,-500.0,0.00017999,2]
[402711794,1768821043936,-500.0,0.00017999,2]
[402711795,1768821043945,-500.0,0.00017999,2]
[402711796,1768821043955,-500.0,0.00017999,2]
[402711797,1768821043964,-500.0,0.00017999,2]
[402711798,1768821043974,-500.0,0.00017999,2]
[402711799,1768821043983,-625.82432737,0.00017999,2]
[402711800,1768821043991,-500.0,0.00017999,2]
[402711801,1768821044000,-500.0,0.00017999,2]
[402711802,1768821044010,-500.0,0.00017999,2]
[402711803,1768821044019,-544.59749833,0.00017999,2]
[402711804,1768821044028,-4304.9639183,0.00017999,2]
[402711805,1768821044038,-2685.4167853,0.00017999,2]
[402711806,1768821044048,-1224.5216583,0.00017999,2]
[402711807,1768821044058,-132612.2225651,0.00017999,2]
[402711808,1768821044067,-1000.0,0.00017999,7]
[402711809,1768821044076,-1000.0,0.00017999,7]
[402711810,1768821044085,-1000.0,0.00017999,7]
[402711811,1768821044094,-1000.0,0.00017999,7]
[402711812,1768821044103,-1000.0,0.00017999,7]
[402711813,1768821044113,-1000.0,0.00017999,7]
[402711814,1768821044122,-1000.0,0.00017999,7]
[402711815,1768821044131,-1000.0,0.00017999,7]
[402711816,1768821044140,-300.0,0.00017999,2]
[402711817,1768821044149,-150.0,0.00018,2]
[402711818,1768821044159,-284554.6941347,0.00018,2]
[402711819,1768821044168,-1118078.31328418,0.00018,2]
[402711820,1768821044187,-6251.40605885,0.00018,2]
[402711821,1768821044482,-740.39071647,0.000179,2]
[402711822,1768821044496,-559.05380626,0.000179,2]
[402711823,1768821044506,-53.92087317,0.00018,2]
[402711824,1768821044517,-541.90514706,0.00018,2]
[402711825,1768821044529,-415.51801819,0.00018,2]
[402711826,1768821044545,-11209.82952769,0.00018,2]
[402711827,1768821044571,-2856.6204109,0.00018,2]
[402711828,1768821044583,-306.23900044,0.00018,2]
[402711829,1768821044595,-500.0,0.00018,2]
[402711830,1768821044612,-1174.910634,0.00018,2]
[402711831,1768821044624,-253.88923684,0.00018,2]
[402711833,1768821045603,-6562.0,0.00017496,2]
[402711834,1768821045614,-6023.65538348,0.00018,2]
[402711835,1768821045762,-21071.92568813,0.00018,2]
[402711845,1768821181424,160.57,0.00013503,2]
[402711881,1768821953117,7518.42,0.000133,2]
[402711882,1768821953142,2481.59,0.000133,2]
[402711884,1768822010929,1358.31889959,0.00015,14]
[402711887,1768822076130,500.0,0.00027397,120]
[402711903,1768822231732,-155.29365003,0.00015657,2]
[402711904,1768822231743,-1200.0,0.00015657,2]
[402711905,1768822231754,-300.0,0.00015657,2]
[402711906,1768822231774,-250.0,0.00015658,2]
[402711907,1768822231786,-18931.4278,0.00015658,2]
[402711908,1768822231796,-155.29365002,0.00015734,2]
[402711909,1768822231807,-500.0,0.00015757,2]
[402711910,1768822231817,-476.67248688,0.00015757,2]
[402711911,1768822231827,-500.0,0.00015757,2]
[402711912,1768822231836,-212.45895139,0.00015834,2]
[402711913,1768822231846,-500.0,0.00015973,2]
[402711914,1768822231855,-213.98699089,0.00015973,2]
[402711915,1768822231865,-150.0,0.000162,2]
[402711916,1768822231875,-448.98884347,0.00016244,2]
[402711917,1768822231885,-1264.0,0.00016333,2]
[402711918,1768822231898,-1264.0,0.00016333,2]
[402711919,1768822231908,-1264.0,0.00016333,2]
[402711920,1768822231918,-1264.0,0.00016333,2]
[402711921,1768822231929,-1264.0,0.00016333,2]
[402711922,1768822231939,-151.0,0.00016333,2]
[402711923,1768822231948,-151.0,0.00016333,2]
[402711924,1768822231958,-151.0,0.00016333,2]
[402711925,1768822231969,-151.0,0.00016333,2]
[402711926,1768822231978,-151.0,0.00016333,2]
[402711927,1768822231988,-151.0,0.00016333,2]
[402711928,1768822231998,-265.82949653,0.00016333,2]
[402711929,1768822232008,-151.0,0.00016333,2]
[402711930,1768822232018,-151.0,0.00016333,2]
[402711931,1768822232028,-151.0,0.00016333,2]
[402711932,1768822232038,-151.0,0.00016333,2]
[402711933,1768822232047,-203.67816829,0.00016438,2]
[402711934,1768822232057,-197.4,0.00016478,2]
[402711935,1768822232066,-665.85,0.0001652,2]
[402711936,1768822232076,-151.0,0.00016598,2]
[402711937,1768822232086,-300.0,0.00016603,4]
[402711938,1768822232096,-151.0,0.00016603,2]
[402711939,1768822232105,-151.0,0.00016603,2]
[402711940,1768822232115,-1820.45,0.00016609,2]
[402711941,1768822232124,-300.0,0.0001663,4]
[402711942,1768822232134,-300.0,0.00016658,4]
[402711943,1768822232143,-1530.16,0.0001668,2]
[402711944,1768822232153,-300.0,0.00016712,4]
[402711945,1768822232163,-300.0,0.00016712,4]
[402711946,1768822232173,-166.36,0.00016712,2]
[402711947,1768822232182,-267.6,0.00016767,4]
[402711948,1768822232192,-4475.1074,0.00016822,2]
[402711949,1768822232201,-300.0,0.00016849,4]
[402711950,1768822232211,-223.0,0.00016859,2]
[402711951,1768822232221,-3421.21,0.00016895,2]
[402711952,1768822232231,-150.99540036,0.000169,2]
[402711953,1768822232241,-9226.45,0.00016922,2]
[402711954,1768822232251,-250.0,0.00017,2]
[402711955,1768822232261,-19782.22610136,0.00017,2]
[402711956,1768822232274,-1115.5,0.00017,2]
[402711957,1768822232297,-549.90444418,0.00017,2]
[402711960,1768822237750,-7552.36945346,0.00017,2]
[402711961,1768822237762,-500.00521144,0.00017,2]
[402711962,1768822237773,-168.0,0.00017032,2]
[402711963,1768822237785,-466.78,0.0001707,2]
[402711964,1768822237797,-310.6741041,0.00017099,2]
[402711965,1768822237808,-4444.0,0.00017099,2]
[402711966,1768822237820,-2105.17121896,0.00017099,2]
[402711967,1768822237831,-574.12855637,0.00017099,2]
[402711968,1768822237842,-578.20924308,0.00017099,2]
[402711969,1768822237854,-249.96112588,0.00017099,2]
[402711970,1768822237865,-500.0,0.00017099,2]
[402711971,1768822237876,-500.0,0.00017099,2]
[402711972,1768822237887,-500.0,0.00017099,2]
[402711973,1768822237903,-1000.0,0.00017099,2]
[402711974,1768822237914,-1000.0,0.00017099,2]
[402711975,1768822237925,-1000.0,0.00017099,2]
[402711976,1768822237937,-1000.0,0.00017099,2]
[402711977,1768822237948,-1000.0,0.00017099,2]
[402711978,1768822237959,-1000.0,0.00017099,2]
[402711979,1768822237970,-1000.0,0.00017099,2]
[402711980,1768822237981,-1000.0,0.00017099,2]
[402711981,1768822237992,-1000.0,0.00017099,2]
[402711982,1768822238003,-1000.0,0.00017099,2]
[402711983,1768822238014,-1000.0,0.00017099,2]
[402711984,1768822238025,-168.0,0.00017099,2]
[402711985,1768822238036,-420.0,0.00017125,2]
[402711986,1768822238048,-150.99540033,0.0001715,2]
[402711987,1768822238060,-587.21265978,0.00017174,2]
[402711989,1768822238071,-500.0,0.000172,4]
[402711991,1768822238082,-1000.0,0.000172,3]
[402711994,1768822238094,-1680.0,0.00017211,2]
[402711996,1768822238105,-200.0,0.00017219,2]
[402711998,1768822238116,-195.0,0.00017223,2]
[402712000,1768822238127,-300.0,0.00017223,2]
[402712002,1768822238138,-600.0,0.00017223,2]
[402712005,1768822238151,-250.0,0.00017223,2]
[402712007,1768822238162,-1000.0,0.0001726,2]
[402712009,1768822238172,-168.0,0.00017285,2]
[402712011,1768822238183,-776.95,0.000173,2]
[402712013,1768822238195,-500.0,0.000173,2]
[402712015,1768822238206,-1000.0,0.000173,3]
[402712017,1768822238217,-168.0,0.00017312,2]
[402712018,1768822238228,-3545.0,0.00017349,2]
[402712019,1768822238240,-168.0,0.00017382,2]
[402712020,1768822238251,-197.4,0.00017393,2]
[402712021,1768822238263,-500.0,0.000174,3]
[402712022,1768822238276,-150.99540033,0.000174,2]
[402712023,1768822238288,-168.0,0.00017442,2]
[402712024,1768822238300,-155.93391326,0.00017458,2]
[402712025,1768822238312,-500.0,0.000175,3]
[402712026,1768822238324,-2000.0,0.000175,2]
[402712027,1768822238335,-168.0,0.00017513,2]
[402712028,1768822238346,-168.0,0.00017517,2]
[402712029,1768822238357,-1000.0,0.00017534,2]
[402712030,1768822238368,-168.0,0.00017554,2]
[402712031,1768822238379,-1219.8409,0.00017615,2]
[402712032,1768822238390,-150.0,0.00017616,2]
[402712033,1768822238401,-150.40921962,0.00017616,2]
[402712034,1768822238412,-500.0,0.00017616,2]
[402712035,1768822238423,-500.0,0.00017616,2]
[402712036,1768822238434,-500.0,0.00017616,2]
[402712037,1768822238446,-368.6169688,0.0001764,2]
[402712038,1768822238457,-595.37131296,0.00017647,2]
[402712039,1768822238468,-3230.0,0.00017648,2]
[402712040,1768822238479,-150.99540033,0.0001765,2]
[402712041,1768822238490,-3230.0,0.00017652,2]
[402712042,1768822238501,-500.0,0.0001766,2]
[402712043,1768822238511,-500.0,0.00017671,2]
[402712044,1768822238523,-500.0,0.00017671,2]
[402712045,1768822238535,-500.0,0.00017671,2]
[402712046,1768822238546,-500.0,0.00017671,2]
[402712047,1768822238557,-168.0,0.00017698,2]
[402712048,1768822238568,-173.75374371,0.00017726,2]
[402712049,1768822238582,-326.24625629,0.00017726,2]
[402712050,1768822238593,-500.0,0.00017726,2]
[402712051,1768822238604,-500.0,0.00017726,2]
[402712052,1768822238616,-150.99,0.00017728,2]
[402712053,1768822238627,-750.0,0.00017739,2]
[402712054,1768822238639,-500.0,0.00017753,2]
[402712055,1768822238650,-150.0,0.00017775,2]
[402712056,1768822238660,-500.0,0.0001778,2]
[402712057,1768822238671,-177.0,0.0001778,2]
[402712058,1768822238682,-1000.0,0.00017808,2]
[402712059,1768822238693,-1354.1603,0.0001782,2]
[402712060,1768822238705,-1354.16031,0.0001782,2]
[402712061,1768822238716,-1354.16031,0.0001782,2]
[402712062,1768822238727,-1354.16031,0.0001782,2]
[402712063,1768822238738,-359.98096521,0.00017829,2]
[402712064,1768822239197,-140.01903479,0.00017829,2]
[402712065,1768822239208,-500.0,0.00017829,2]
[402712066,1768822239219,-2607.46,0.00017829,2]
[402712067,1768822239230,-158.468,0.00017832,2]
[402712068,1768822239241,-500.0,0.00017835,2]
[402712069,1768822239251,-300.0,0.00017851,2]
[402712070,1768822239262,-347.31130087,0.00017877,2]
[402712071,1768822239273,-421.7697,0.0001788,2]
[402712072,1768822239283,-500.0,0.0001789,2]
[402712073,1768822239294,-25000.0,0.00017891,3]
[402712074,1768822239305,-151.0,0.00017897,2]
[402712075,1768822239316,-4351.62572666,0.00017899,2]
[402712080,1768822240003,-151.0,0.00016952,2]
[402712081,1768822240014,-151.0,0.00016952,2]
[402712082,1768822240025,-247.39421295,0.00017899,2]
[402712083,1768822240037,-531.29635571,0.00017899,2]
[402712084,1768822240049,-355.1625,0.00017899,2]
[402712085,1768822240070,-345.9341206,0.00017899,2]
[402712086,1768822240083,-4168.58708408,0.00017899,2]
[402712087,1768822240093,-1150.12772415,0.000179,2]
[402712088,1768822240103,-25000.0,0.000179,3]
[402712089,1768822240113,-150.99540033,0.000179,2]
[402712090,1768822240124,-1000.0,0.00017906,2]
[402712091,1768822240135,-200.0,0.00017923,2]
[402712092,1768822240144,-1000.0,0.00017942,2]
[402712093,1768822240155,-500.0,0.00017945,2]
[402712094,1768822240165,-1000.0,0.00017958,2]
[402712095,1768822240175,-500.0,0.00017973,2]
[402712096,1768822240186,-500.0,0.00017982,2]
[402712097,1768822240196,-1000.0,0.00017983,2]
[402712098,1768822240206,-216.92945839,0.0001799,2]
[402712099,1768822240216,-216.92945839,0.0001799,2]
[402712100,1768822240227,-216.92945839,0.0001799,2]
[402712101,1768822240238,-151.0,0.00017995,2]
[402712102,1768822240249,-151.0,0.00017997,2]
[402712103,1768822240259,-500.0,0.00017998,2]
[402712104,1768822240270,-500.0,0.00017998,2]
[402712105,1768822240280,-69648.1030211,0.00017998,2]
[402712106,1768822240290,-18901.0654487,0.00017998,2]
[402712119,1768822240863,-500.0,0.00017998,2]
[402712120,1768822240893,-500.0,0.00017998,2]
[402712121,1768822240922,-1382.3713942,0.00017998,2]
[402712122,1768822240943,-88570.0141019,0.00017998,2]
[402712123,1768822240953,-101473.2295128,0.00017998,2]
[402712124,1768822240963,-3228.7229387,0.00017998,2]
[402712125,1768822240974,-504.28373524,0.00017999,2]
[402712126,1768822240983,-500.0,0.00017999,2]
[402712127,1768822240993,-500.0,0.00017999,2]
[402712128,1768822241003,-625.82432737,0.00017999,2]
[402712129,1768822241013,-300.0,0.00017999,2]
[402712130,1768822241024,-642.58389368,0.00017999,2]
[402712131,1768822241034,-510.51181022,0.00017999,2]
[402712132,1768822241044,-500.0,0.00017999,2]
[402712133,1768822241054,-500.0,0.00017999,2]
[402712134,1768822241064,-1000.0,0.00017999,7]
[402712135,1768822241074,-1000.0,0.00017999,7]
[402712136,1768822241084,-1000.0,0.00017999,7]
[402712137,1768822241094,-1000.0,0.00017999,7]
[402712138,1768822241103,-1000.0,0.00017999,7]
[402712139,1768822241113,-1000.0,0.00017999,7]
[402712140,1768822241123,-1000.0,0.00017999,7]
[402712141,1768822241133,-1000.0,0.00017999,7]
[402712142,1768822241143,-500.0,0.00017999,2]
[402712143,1768822241153,-519.05995183,0.00017999,2]
[402712144,1768822241163,-500.0,0.00017999,2]
[402712145,1768822241173,-505.04837399,0.00017999,2]
[402712146,1768822241183,-500.0,0.00017999,2]
[402712147,1768822241192,-300.0,0.00017999,2]
[402712148,1768822241202,-580.84626551,0.00017999,2]
[402712149,1768822241212,-500.0,0.00017999,2]
[402712150,1768822241221,-500.0,0.00017999,2]
[402712151,1768822241231,-500.0,0.00017999,2]
[402712152,1768822241241,-500.0,0.00017999,2]
[402712153,1768822241250,-544.59749833,0.00017999,2]
[402712154,1768822241260,-500.0,0.00017999,2]
[402712155,1768822241270,-300.0,0.00017999,2]
[402712156,1768822241279,-277.89121675,0.00017999,2]
[402712157,1768822241289,-500.0,0.00017999,2]
[402712158,1768822241299,-172.06076958,0.00017999,2]
[402712159,1768822241308,-410.21176595,0.00017999,2]
[402712160,1768822241317,-510.74926717,0.00017999,2]
[402712161,1768822241327,-500.0,0.00018,2]
[402712162,1768822241337,-3141.0,0.00018,2]
[402712163,1768822241346,-150.0,0.00018,2]
[402712164,1768822241355,-150.0,0.00018,2]
[402712165,1768822241364,-1380389.07933269,0.00018,2]
[402712173,1768822245750,-198.90312918,0.000179,3]
[402712174,1768822245759,-3021.67590391,0.00018,2]
[402712175,1768822245770,-1696.51798432,0.00018,2]